Workbook

Sheet 円板上の物体
A1: 一定角速度で回転している円板の回転中心に向かって投じた物体の運動
A2: x''＝ω^2x＋2ω^2y' | P2: マクロで計算 ➡ | R2: =exe("ルンゲ･クッタ･ギル法","RotationDisk",C8:C17,N8:T8) -> ルンゲ･クッタ･ギル法
A3: y''＝ω^2y－2ω^2x' | O3: マクロは標準モジュール-Module6 の中。 実行させるには =exe(･･･ と先頭に＝を付加する。
I4: 理論値 | Q4: 数値積分 | Z4: 理論値との差
E5: 回転角 | F5: 時間 | G5: 加速度 | I5: 速度 | K5: 位置 | N5: 時間 | O5: 加速度 | Q5: 速度 | S5: 位置 | V5: 時間 | W5: 加速度 | Y5: 速度 | AA5: 位置
A6: 円板が1回転する間に回転 | E6: θ | F6: t | G6: x'' | H6: y'' | I6: x' | J6: y' | K6: x | L6: y | N6: t | O6: x'' | P6: y'' | Q6: x' | R6: y' | S6: x | T6: y | V6: t | W6: x'' | X6: y'' | Y6: x' | Z6: y' | AA6: x | AB6: y
A7: 中心に到達する条件を設定 | E7: [deg] | F7: [s] | G7: [m/s^2] | H7: [m/s^2] | I7: [m/s] | J7: [m/s] | K7: [m] | L7: [m] | N7: [s] | O7: [m/s^2] | P7: [m/s^2] | Q7: [m/s] | R7: [m/s] | S7: [m] | T7: [m] | V7: [s] | W7: [m/s^2] | X7: [m/s^2] | Y7: [m/s] | Z7: [m/s] | AA7: [m] | AB7: [m]
A8: 時間間隔 | B8: Δt | C8: 1 | D8: [s] | E8: =DEGREES(C$11*F8) -> 0 | F8: 0 | G8: =C$11^2*K8+2*C$11*J8 -> -0.009869604401 | H8: =C$11^2*L8-2*C$11*I8 -> 0.006283185307 | I8: =C$16*COS(C$11*F8)+C$11*L8 -> -0.1 | J8: =-C$16*SIN(C$11*F8)-C$11*K8 -> -0.3141592654 | K8: =(C$17+C$16*F8)*COS(C$11*F8) -> 10 | L8: =-(C$17+C$16*F8)*SIN(C$11*F8) -> 0 | N8: 0 | O8: -0.009869604401 | P8: 0.006283185307 | Q8: -0.1 | R8: -0.3141592654 | S8: 10 | T8: 0 | V8: =F8 -> 0 | W8: =O8-G8 -> 0 | X8: 0 | Y8: 0 | Z8: 0 | AA8: 0 | AB8: 0
A9: 終了時間 | B9: TL | C9: 100 | D9: [s] | E9: 1.8 | F9: =F8+C$10 -> 1 | G9: -0.009568727384 | H9: 0.006586996583 | I9: =C$12*COS(C$11*F9)+C$11*L9 -> -0.1097199572 | J9: =-C$12*SIN(C$11*F9)-C$11*K9 -> -0.3077231284 | K9: 9.895114948 | L9: -0.3109665149 | N9: 1 | O9: -0.009568727389 | P9: 0.00658699658 | Q9: -0.1097199571 | R9: -0.3077231285 | S9: 9.895114952 | T9: -0.3109665123 | V9: 1 | W9: -5.621111215e-12 | X9: -2.483293952e-12 | Y9: 7.917921874e-11 | Z9: -1.534244398e-10 | AA9: 4.071928572e-09 | AB9: 2.524602916e-09
A10: 出力間隔 | B10: Δtp | C10: 1 | D10: [s] | E10: 3.6 | F10: =F9+C$10 -> 2 | G10: -0.009258601942 | H10: 0.006878110112 | I10: -0.1191343719 | J10: -0.300989505 | K10: 9.780661939 | L10: -0.6153470914 | N10: 2 | O10: -0.009258601953 | P10: 0.006878110108 | Q10: -0.1191343717 | R10: -0.3009895053 | S10: 9.780661947 | T10: -0.6153470866 | V10: 2 | W10: =O10-G10 -> -1.139083446e-11 | X10: =P10-H10 -> -4.56070598e-12 | Y10: =Q10-I10 -> 1.470406991e-10 | Z10: =R10-J10 -> -3.116130132e-10 | AA10: =S10-K10 -> 8.296570542e-09 | AB10: =T10-L10 -> 4.739940773e-09
A11: 角速度 | B11: ω | C11: =360/200*PI()/180 -> 0.03141592654 | D11: [rad/s] | E11: 5.4 | F11: 3 | G11: -0.008939728693 | H11: 0.007156247777 | I11: -0.1282342451 | J11: -0.2939712336 | K11: 9.656951057 | L11: -0.9128506392 | N11: 3 | O11: -0.008939728711 | P11: 0.007156247771 | Q11: -0.1282342449 | R11: -0.2939712341 | S11: 9.656951069 | T11: -0.9128506326 | V11: 3 | W11: -1.728756721e-11 | X11: -6.22565801e-12 | Y11: 2.03372319e-10 | Z11: -4.739534321e-10 | AA11: 1.265684269e-08 | AB11: 6.639173322e-09
A12: 初期速度 | B12: vx0 | C12: =C$16+C$11*C$15 -> -0.1 | D12: [m/s] | E12: 7.2 | F12: 4 | G12: -0.008612616506 | H12: 0.007421150371 | I12: -0.1370110828 | J12: -0.2866814213 | K12: 9.524301133 | L12: -1.203199042 | N12: 4 | O12: -0.008612616529 | P12: 0.007421150363 | Q12: -0.1370110826 | R12: -0.286681422 | S12: 9.52430115 | T12: -1.203199034 | V12: 4 | W12: -2.328945717e-11 | X12: -7.472585051e-12 | Y12: 2.479909056e-10 | Z12: -6.398252483e-10 | AA12: 1.713538644e-08 | AB12: 8.216280767e-09
B13: vy0 | C13: =-C$11*C$14 -> -0.3141592654 | D13: [m/s] | E13: 9 | F13: 5 | G13: -0.008277781801 | H13: 0.00767257784 | I13: -0.1454569038 | J13: -0.2791334248 | K13: 9.383039236 | L13: -1.486127418 | N13: 5 | O13: -0.008277781831 | P13: 0.007672577832 | Q13: -0.1454569036 | R13: -0.2791334256 | S13: 9.383039257 | T13: -1.486127408 | V13: 5 | W13: -2.937443171e-11 | X13: -8.296928249e-12 | Y13: 2.807424293e-10 | Z13: -8.086010195e-10 | AA13: 2.171461944e-08 | AB13: 9.466072592e-09
A14: 初期位置 | B14: x0 | C14: =C$17 -> 10 | D14: [m] | E14: 10.8 | F14: 6 | G14: -0.007935747856 | H14: 0.007910309501 | I14: -0.1535642466 | J14: -0.2713408311 | K14: 9.233500157 | L14: -1.761384357 | N14: 6 | O14: -0.007935747891 | P14: 0.007910309493 | Q14: -0.1535642463 | R14: -0.2713408321 | S14: 9.233500183 | T14: -1.761384347 | V14: 6 | W14: -3.552025514e-11 | X14: -8.695166115e-12 | Y14: 3.015024619e-10 | Z14: -9.796476408e-10 | AA14: 2.637676388e-08 | AB14: 1.03841975e-08
B15: y0 | C15: 0 | D15: [m] | E15: 12.6 | F15: 7 | G15: -0.007587044094 | H15: 0.00813414423 | I15: -0.1613261762 | J15: -0.2633174383 | K15: 9.076025886 | L15: -2.028732145 | N15: 7 | O15: -0.007587044135 | P15: 0.008134144222 | Q15: -0.1613261759 | R15: -0.2633174395 | S15: 9.076025917 | T15: -2.028732134 | V15: 7 | W15: -4.170456602e-11 | X15: -8.664794576e-12 | Y15: 3.101760793e-10 | Z15: -1.152327345e-09 | AA15: 3.110387681e-08 | AB15: 1.096714852e-08
A16: 投入速度 | B16: v0 | C16: =-C14/C9 -> -0.1 | D16: [m/s] | E16: 14.4 | F16: 8 | G16: -0.007232205374 | H16: 0.008343900627 | I16: -0.1687362898 | J16: -0.2550772357 | K16: 8.910965082 | L16: -2.287946962 | N16: 8 | O16: -0.007232205422 | P16: 0.008343900619 | Q16: -0.1687362895 | R16: -0.255077237 | S16: 8.910965118 | T16: -2.287946951 | V16: 8 | W16: -4.790494303e-11 | X16: -8.204355598e-12 | Y16: 3.066983056e-10 | Z16: -1.325999643e-09 | AA16: 3.587790509e-08 | AB16: 1.121226934e-08
A17: 円板の半径 | B17: a | C17: 10 | D17: [m] | E17: 16.2 | F17: 9 | G17: -0.006871771277 | H17: 0.008539417158 | I17: -0.1757887218 | J17: -0.2466343839 | K17: 8.73867254 | L17: -2.538819065 | N17: 9 | O17: -0.006871771332 | P17: 0.008539417151 | Q17: -0.1757887215 | R17: -0.2466343854 | S17: 8.73867258 | T17: -2.538819054 | V17: 9 | W17: -5.409890591e-11 | X17: -7.313422437e-12 | Y17: 2.91034058e-10 | Z17: -1.500021718e-09 | AA17: 4.068069615e-08 | AB17: 1.111775783e-08
E18: 18 | F18: 10 | G18: -0.006506285382 | H18: 0.008720552268 | I18: -0.1824781484 | J18: -0.2380031954 | K18: 8.559508647 | L18: -2.781152949 | N18: 10 | O18: -0.006506285443 | P18: 0.008720552262 | Q18: -0.1824781481 | R18: -0.2380031971 | S18: 8.559508692 | T18: -2.781152939 | V18: 10 | W18: -6.026399605e-11 | X18: -5.992593574e-12 | Y18: 2.631780072e-10 | Z18: -1.673750333e-09 | AA18: 4.549406185e-08 | AB18: 1.068266542e-08
E19: 19.8 | F19: 11 | G19: -0.006136294547 | H19: 0.008887184472 | I19: -0.1887997909 | J19: -0.2291981139 | K19: 8.373838844 | L19: -3.01476749 | N19: 11 | O19: -0.006136294613 | P19: 0.008887184468 | Q19: -0.1887997907 | R19: -0.2291981158 | S19: 8.373838894 | T19: -3.01476748 | V19: 11 | W19: -6.637781123e-11 | X19: -4.243511792e-12 | Y19: 2.231548557e-10 | Z19: -1.84654303e-09 | AA19: 5.02997981e-08 | AB19: 9.906902854e-09
E20: 21.6 | F20: 12 | G20: -0.005762348185 | H20: 0.009039212416 | I20: -0.1947494189 | J20: -0.2202336948 | K20: 8.182033076 | L20: -3.239496064 | N20: 12 | O20: -0.005762348257 | P20: 0.009039212414 | Q20: -0.1947494188 | R20: -0.2202336968 | S20: 8.182033131 | T20: -3.239496055 | V20: 12 | W20: -7.241803858e-11 | X20: -2.068850299e-12 | Y20: 1.710191155e-10 | Z20: -2.017759404e-09 | AA20: 5.50797381e-08 | AB20: 8.791232187e-09
E21: 23.4 | F21: 13 | G21: -0.005384997539 | H21: 0.009176554915 | I21: -0.2003233525 | J21: -0.2111245845 | K21: 7.984465243 | L21: -3.455186649 | N21: 13 | O21: -0.005384997618 | P21: 0.009176554916 | Q21: -0.2003233524 | R21: -0.2111245866 | S21: 7.984465303 | T21: -3.455186641 | V21: 13 | W21: -7.83625274e-11 | X21: 5.276994119e-13 | Y21: 1.068549693e-10 | Z21: -2.186762299e-09 | AA21: 5.981577278e-08 | AB21: 7.337269015e-09
A22: 理論値 | E22: 25.2 | F22: 14 | G22: -0.005004794962 | H22: 0.009299150968 | I22: -0.2055184634 | J22: -0.2018855006 | K22: 7.781512651 | L22: -3.661701907 | N22: 14 | O22: -0.005004795046 | P22: 0.009299150971 | Q22: -0.2055184633 | R22: -0.201885503 | S22: 7.781512716 | T22: -3.661701902 | V22: 14 | W22: -8.418928922e-11 | X22: 3.541424098e-12 | Y22: 3.077610389e-11 | Z22: -2.352919054e-09 | AA22: 6.44898952e-08 | AB22: 5.547480253e-09
A23: 回転系での物体の運動 | E23: 27 | F23: 15 | G23: -0.004622293188 | H23: 0.009406959741 | I23: -0.210332176 | J23: -0.1925312118 | K23: 7.573555456 | L23: -3.858919248 | N23: 15 | O23: -0.004622293278 | P23: 0.009406959747 | Q23: -0.2103321761 | R23: -0.1925312144 | S23: 7.573555525 | T23: -3.858919244 | V23: 15 | W23: -8.987658361e-11 | X23: 6.966602642e-12 | Y23: -5.707448403e-11 | Z23: -2.51560292e-09 | AA23: 6.908423789e-08 | AB23: 3.42517037e-09
A24: x＝(a＋v0t)cosωt | E24: 28.8 | F24: 16 | G24: -0.004238044617 | H24: 0.00949996053 | I24: -0.2147624675 | J24: -0.1830765174 | K24: 7.360976112 | L24: -4.046730862 | N24: 16 | O24: -0.004238044712 | P24: 0.00949996054 | Q24: -0.2147624676 | R24: -0.18307652 | S24: 7.360976186 | T24: -4.046730861 | V24: 16 | W24: -9.540293729e-11 | X24: 1.079652513e-11 | Y24: -1.565249041e-10 | Z24: -2.67419431e-09 | AA24: 7.358111276e-08 | AB24: 9.744827167e-10
A25: y＝－(a＋v0t)sinωt | E25: 30.6 | F25: 17 | G25: -0.003852600593 | H25: 0.009578152697 | I25: -0.2188078668 | J25: -0.1735362272 | K25: 7.144158824 | L25: -4.225043751 | N25: 17 | O25: -0.003852600694 | P25: 0.009578152712 | Q25: -0.2188078671 | R25: -0.17353623 | S25: 7.144158902 | T25: -4.225043753 | V25: =F25 -> 17 | W25: -1.007471901e-10 | X25: 1.502347899e-11 | Y25: -2.673743726e-10 | Z25: -2.828081908e-09 | AA25: 7.796303958e-08 | AB25: -1.799613791e-09
A26: x'＝v0cosωt＋ωy | E26: 32.4 | F26: 18 | G26: -0.003466510694 | H26: 0.009641555581 | I26: -0.2224674534 | J26: -0.163925142 | K26: 6.923488989 | L26: -4.393779719 | N26: 18 | O26: -0.0034665108 | P26: 0.009641555601 | Q26: -0.2224674538 | R26: -0.1639251449 | S26: 6.923489071 | T26: -4.393779724 | V26: 18 | W26: -1.058885488e-10 | X26: 1.963879927e-11 | Y26: -3.893941558e-10 | Z26: -2.976664054e-09 | AA26: 8.221278858e-08 | AB26: -4.891337113e-09
A27: y'＝－v0sinωt－ωx | E27: 34.2 | F27: 19 | G27: -0.00308032202 | H27: 0.009690208382 | I27: -0.2257408553 | J27: -0.154258033 | K27: 6.699352652 | L27: -4.552875361 | N27: 19 | O27: -0.003080322131 | P27: 0.009690208406 | Q27: -0.2257408558 | R27: -0.1542580361 | S27: 6.699352738 | T27: -4.552875369 | V27: 19 | W27: -1.108066052e-10 | X27: 2.463284958e-11 | Y27: -5.22327348e-10 | Z27: -3.119349751e-09 | AA27: 8.631340798e-08 | AB27: -8.294096077e-09
A28: x''＝ω^2x＋2ωy' | E28: 36 | F28: 20 | G28: -0.00269457849 | H28: 0.009724170023 | I28: -0.2286282459 | J28: -0.1445496225 | K28: 6.472135955 | L28: -4.702282018 | N28: 20 | O28: -0.002694578605 | P28: 0.009724170053 | Q28: -0.2286282465 | R28: -0.1445496257 | S28: 6.472136045 | T28: -4.70228203 | V28: 20 | W28: -1.154814031e-10 | X28: 2.99950724e-11 | Y28: -6.65889982e-10 | Z28: -3.255560099e-09 | AA28: 9.024826841e-08 | AB28: -1.200050992e-08
A29: y''＝ω^2y－2ωx' | E29: 37.8 | F29: 21 | G29: -0.002309820142 | H29: 0.009743518986 | I29: -0.2311303407 | J29: -0.134814564 | K29: 6.242224598 | L29: -4.841965724 | N29: 21 | O29: -0.002309820262 | P29: 0.009743519022 | Q29: -0.2311303415 | R29: -0.1348145674 | S29: 6.242224692 | T29: -4.84196574 | V29: 21 | W29: -1.198934584e-10 | X29: 3.571398385e-11 | Y29: -8.197711399e-10 | Z29: -3.38472933e-09 | AA29: 9.400109047e-08 | AB29: -1.600242072e-08
E30: 39.6 | F30: 22 | G30: -0.001926582449 | H30: 0.009748353125 | I30: -0.2332483931 | J30: -0.125067423 | K30: 6.010003294 | L30: -4.97190712 | N30: 22 | O30: -0.001926582573 | P30: 0.009748353167 | Q30: -0.2332483941 | R30: -0.1250674265 | S30: 6.010003391 | T30: -4.97190714 | V30: 22 | W30: -1.240238097e-10 | X30: 4.177719976e-11 | Y30: -9.836336745e-10 | Z30: -3.506306023e-09 | AA30: 9.755598196e-08 | AB30: -2.029091117e-08
E31: 41.4 | F31: 23 | G31: -0.00154539563 | H31: 0.009738789454 | I31: -0.2349841893 | J31: -0.1153226572 | K31: 5.775855236 | L31: -5.092101363 | N31: 23 | O31: -0.001545395758 | P31: 0.009738789502 | Q31: -0.2349841905 | R31: -0.1153226609 | S31: 5.775855337 | T31: -5.092101388 | V31: 23 | W31: -1.278540472e-10 | X31: 4.817147028e-11 | Y31: -1.157114904e-09 | Z31: -3.619754024e-09 | AA31: 1.008974637e-07 | AB31: -2.485631878e-08
E32: 43.2 | F32: 24 | G32: -0.001166783982 | H32: 0.009714963908 | I32: -0.2363400428 | J32: -0.1055945982 | K32: 5.540161568 | L32: -5.202558005 | N32: 24 | O32: -0.001166784113 | P32: 0.009714963962 | Q32: -0.2363400442 | R32: -0.105594602 | S32: 5.540161672 | T32: -5.202558035 | V32: 24 | W32: -1.313663661e-10 | X32: 5.488269041e-11 | Y32: -1.339827194e-09 | Z32: -3.724553971e-09 | AA32: 1.040105131e-07 | AB32: -2.96882563e-08
E33: 45 | F33: 25 | G33: -0.0007912652116 | H33: 0.009677031088 | I33: -0.2373187883 | J33: -0.09589743206 | K33: 5.303300859 | L33: -5.303300859 | N33: 25 | O33: -0.0007912653461 | P33: 0.00967703115 | Q33: -0.2373187898 | R33: -0.09589743588 | S33: 5.303300966 | T33: -5.303300894 | V33: 25 | W33: -1.345435796e-10 | X33: 6.189592935e-11 | Y33: -1.531358707e-09 | Z33: -3.820203945e-09 | AA33: 1.068805888e-07 | AB33: -3.477563482e-08
E34: 46.8 | F34: 26 | G34: -0.0004193497866 | H34: 0.009625163978 | I34: -0.2379237745 | J34: -0.08624518103 | K34: 5.065648584 | L34: -5.394367843 | N34: 26 | O34: -0.0004193499239 | P34: 0.009625164048 | Q34: -0.2379237762 | R34: -0.08624518493 | S34: 5.065648693 | T34: -5.394367883 | V34: 26 | W34: -1.373691705e-10 | X34: 6.919545492e-11 | Y34: -1.731274124e-09 | Z34: -3.906220569e-09 | AA34: 1.09493655e-07 | AB34: -4.010667887e-08
E35: 48.6 | F35: 27 | G35: -5.154029098e-05 | H35: 0.009559553641 | I35: -0.2381588566 | J35: -0.07665168538 | K35: 4.827576617 | L35: -5.475810808 | N35: 27 | O35: -5.154043081e-05 | P35: 0.009559553718 | Q35: -0.2381588585 | R35: -0.07665168936 | S35: 4.827576729 | T35: -5.475810854 | V35: 27 | W35: -1.398273281e-10 | X35: 7.67647803e-11 | Y35: -1.939115646e-09 | Z35: -3.982140367e-09 | AA35: 1.118362256e-07 | AB35: -4.566895306e-08
E36: 50.4 | F36: 28 | G36: 0.0003116692035 | H36: 0.009480408889 | I36: -0.2380283885 | J36: -0.06713058541 | K36: 4.589452726 | L36: -5.547695348 | N36: 28 | O36: 0.0003116690616 | P36: 0.009480408974 | Q36: -0.2380283906 | R36: -0.06713058946 | S36: 4.58945284 | T36: -5.547695399 | V36: 28 | W36: -1.419029652e-10 | X36: 8.458666406e-11 | Y36: -2.1544036e-09 | Z36: -4.047520277e-09 | AA36: 1.138953802e-07 | AB36: -5.14493852e-08
E37: 52.2 | F37: 29 | G37: 0.0006697937547 | H37: 0.009387955939 | I37: -0.2375372133 | J37: -0.05769530386 | K37: 4.351640081 | L37: -5.610100588 | N37: 29 | O37: 0.0006697936111 | P37: 0.009387956032 | Q37: -0.2375372157 | R37: -0.05769530796 | S37: 4.351640197 | T37: -5.610100645 | V37: 29 | W37: -1.435817611e-10 | X37: 9.264315357e-11 | Y37: -2.376637276e-09 | Z37: -4.101938837e-09 | AA37: 1.156587972e-07 | AB37: -5.743428844e-08
E38: 54 | F38: 30 | G38: 0.001022358153 | H38: 0.009282438043 | I38: -0.2366906545 | J38: -0.0483590287 | K38: 4.114496766 | L38: -5.663118961 | N38: 30 | O38: 0.001022358008 | P38: 0.009282438144 | Q38: -0.2366906571 | R38: -0.04835903284 | S38: 4.114496883 | T38: -5.663119024 | V38: 30 | W38: -1.448501952e-10 | X38: 1.009156404e-10 | Y38: -2.60529634e-09 | Z38: -4.144997165e-09 | AA38: 1.171147828e-07 | AB38: -6.360939508e-08
E39: 55.8 | F39: 31 | G39: 0.001368897512 | H39: 0.009164115094 | I39: -0.2354945055 | J39: -0.0391346963 | K39: 3.878375307 | L39: -5.706855962 | N39: 31 | O39: 0.001368897366 | P39: 0.009164115203 | Q39: -0.2354945083 | R39: -0.03913470048 | S39: 3.878375425 | T39: -5.706856032 | V39: 31 | W39: -1.45695562e-10 | X39: 1.093848571e-10 | Y39: -2.839841196e-09 | Z39: -4.17631945e-09 | AA39: 1.182522857e-07 | AB39: -6.995987434e-08
E40: =DEGREES(C$11*F40) -> 57.6 | F40: 32 | G40: =C$11^2*K40+2*C$11*J40 -> 0.00170895784 | H40: =C$11^2*L40-2*C$11*I40 -> 0.00903326322 | I40: -0.2339550192 | J40: -0.03003497499 | K40: =(C$17+C$16*F40)*COS(C$11*F40) -> 3.643622206 | L40: =-(C$17+C$16*F40)*SIN(C$11*F40) -> -5.741429893 | N40: 32 | O40: 0.001708957694 | P40: 0.009033263338 | Q40: -0.2339550223 | R40: -0.03003497919 | S40: 3.643622325 | T40: -5.74142997 | V40: 32 | W40: -1.46106019e-10 | X40: 1.180309288e-10 | Y40: -3.079714317e-09 | Z40: -4.195554352e-09 | AA40: 1.190609376e-07 | AB40: -7.64703687e-08
E41: 59.4 | F41: 33 | G41: 0.002042096601 | H41: 0.008890174354 | I41: =C$12*COS(C$11*F41)+C$11*L41 -> -0.2320788971 | J41: =-C$12*SIN(C$11*F41)-C$11*K41 -> -0.02107224903 | K41: 3.410577486 | L41: -5.766971581 | N41: 33 | O41: 0.002042096455 | P41: 0.008890174481 | Q41: -0.2320789004 | R41: -0.02107225323 | S41: 3.410577605 | T41: -5.766971664 | V41: 33 | W41: -1.460705914e-10 | X41: 1.26833417e-10 | Y41: -3.324341191e-09 | Z41: -4.202375163e-09 | AA41: 1.195310602e-07 | AB41: -8.312501443e-08
E42: 61.2 | F42: 34 | G42: 0.002367883256 | H42: 0.008735155782 | I42: -0.2298732769 | J42: -0.01225860302 | K42: 3.179574249 | L42: -5.783624088 | N42: 34 | O42: 0.002367883111 | P42: 0.008735155918 | Q42: -0.2298732805 | R42: -0.01225860722 | S42: 3.179574369 | T42: -5.783624178 | V42: 34 | W42: -1.455792106e-10 | X42: 1.357713404e-10 | Y42: -3.573131374e-09 | Z42: -4.196480991e-09 | AA42: 1.196536985e-07 | AB42: -8.99074788e-08
E43: 63 | F43: 35 | G43: 0.002685899789 | H43: 0.008568529681 | I43: -0.2273457208 | J43: -0.003605806802 | K43: 2.950938248 | L43: -5.791542407 | N43: 35 | O43: 0.002685899644 | P43: 0.008568529826 | Q43: -0.2273457246 | R43: -0.00360581098 | S43: 2.950938368 | T43: -5.791542504 | V43: 35 | W43: -1.446227305e-10 | X43: 1.448232298e-10 | Y43: -3.825479711e-09 | Z43: -4.177597198e-09 | AA43: 1.194206356e-07 | AB43: -9.680099122e-08
E44: 64.8 | F44: 36 | G44: 0.002995741213 | H44: 0.008390632627 | I44: -0.2245042025 | J44: 0.004874699203 | K44: 2.724987466 | L44: -5.790893136 | N44: 36 | O44: 0.00299574107 | P44: 0.008390632781 | Q44: -0.2245042066 | R44: 0.004874695058 | S44: 2.724987585 | T44: -5.79089324 | V44: 36 | W44: -1.431929636e-10 | X44: 1.539671515e-10 | Y44: -4.080767196e-09 | Z44: -4.145476374e-09 | AA44: 1.18824417e-07 | AB44: -1.037883681e-07
E45: 66.6 | F45: 37 | G45: 0.003297016061 | H45: 0.0082018151 | I45: -0.221357094 | J45: 0.01317181815 | K45: 2.502031711 | L45: -5.781854142 | N45: 37 | O45: 0.00329701592 | P45: 0.008201815263 | Q45: -0.2213570984 | R45: 0.01317181405 | S45: 2.502031829 | T45: -5.781854253 | V45: 37 | W45: -1.412826791e-10 | X45: 1.631807623e-10 | Y45: -4.338362475e-09 | Z45: -4.099898521e-09 | AA45: 1.178583635e-07 | AB45: -1.108520546e-07
E46: 68.4 | F46: 38 | G46: 0.003589346858 | H46: 0.008002440961 | I46: -0.2179131519 | J46: 0.02127481039 | K46: 2.282372227 | L46: -5.764614213 | N46: 38 | O46: 0.003589346719 | P46: 0.008002441133 | Q46: -0.2179131565 | R46: 0.02127480635 | S46: 2.282372343 | T46: -5.76461433 | V46: 38 | W46: -1.388856369e-10 | X46: 1.724413338e-10 | Y46: -4.597622644e-09 | Z46: -4.04067186e-09 | AA46: 1.165165884e-07 | AB46: -1.179741487e-07
E47: 70.2 | F47: 39 | G47: 0.00387237057 | H47: 0.00779288692 | I47: -0.2141815028 | J47: 0.02917330663 | K47: 2.066301313 | L47: -5.739372691 | N47: 39 | O47: 0.003872370434 | P47: 0.007792887102 | Q47: -0.2141815077 | R47: 0.02917330266 | S47: 2.066301428 | T47: -5.739372816 | V47: 39 | W47: -1.359965998e-10 | X47: 1.817258002e-10 | Y47: -4.857894614e-09 | Z47: -3.967633277e-09 | AA47: 1.147940152e-07 | AB47: -1.251364452e-07
E48: 72 | F48: 40 | G48: 0.004145739037 | H48: 0.007573541986 | I48: -0.2101716293 | J48: 0.03685732047 | K48: 1.854101966 | L48: -5.706339098 | N48: 40 | O48: 0.004145738904 | P48: 0.007573542177 | Q48: -0.2101716344 | R48: 0.03685731659 | S48: 1.854102079 | T48: -5.70633923 | V48: 40 | W48: -1.326113464e-10 | X48: 1.910108183e-10 | Y48: -5.118516611e-09 | Z48: -3.88064883e-09 | AA48: 1.126863916e-07 | AB48: -1.323204666e-07
E49: 73.8 | F49: 41 | G49: 0.004409119386 | H49: 0.007344806902 | I49: -0.2058933543 | J49: 0.04431726043 | K49: 1.646047526 | L49: -5.665732745 | N49: 41 | O49: 0.004409119257 | P49: 0.007344807103 | Q49: -0.2058933597 | R49: 0.04431725665 | S49: 1.646047636 | T49: -5.665732885 | V49: 41 | W49: -1.287266968e-10 | X49: 2.002727775e-10 | Y49: -5.378818807e-09 | Z49: -3.779614226e-09 | AA49: 1.101903022e-07 | AB49: -1.395074918e-07
E50: 75.6 | F50: 42 | G50: 0.00466219442 | H50: 0.00710709357 | I50: -0.2013568258 | J50: 0.05154394141 | K50: 1.442401346 | L50: -5.617782335 | N50: 42 | O50: 0.004662194296 | P50: 0.00710709378 | Q50: -0.2013568315 | R50: 0.05154393774 | S50: 1.442401453 | T50: -5.617782481 | V50: 42 | W50: -1.243405023e-10 | X50: 2.094878715e-10 | Y50: -5.638125106e-09 | Z50: -3.66445492e-09 | AA50: 1.073031766e-07 | AB50: -1.466786017e-07
E51: 77.4 | F51: 43 | G51: 0.004904662987 | H51: 0.006860824459 | I51: -0.1965725011 | J51: 0.05852859553 | K51: 1.243416476 | L51: -5.562725543 | N51: 43 | O51: 0.004904662868 | P51: 0.006860824678 | Q51: -0.196572507 | R51: 0.058528592 | S51: 1.24341658 | T51: -5.562725697 | V51: 43 | W51: -1.194516786e-10 | X51: 2.186321211e-10 | Y51: -5.895754107e-09 | Z51: -3.535126678e-09 | AA51: 1.040232998e-07 | AB51: -1.538147112e-07
E52: 79.2 | F52: 44 | G52: 0.005136240331 | H52: 0.006606432003 | I52: -0.1915511305 | J52: 0.06526288244 | K52: 1.049335362 | L52: -5.500808604 | N52: 44 | O52: 0.005136240217 | P52: 0.006606432231 | Q52: -0.1915511366 | R52: 0.06526287905 | S52: 1.049335462 | T52: -5.500808765 | V52: 44 | W52: -1.140601944e-10 | X52: 2.276814379e-10 | Y52: -6.15102061e-09 | Z52: -3.391615711e-09 | AA52: 1.003498231e-07 | AB52: -1.608966063e-07
E53: 81 | F53: 45 | G53: 0.005356658413 | H53: 0.006344357989 | I53: -0.1863037404 | J53: 0.07173889892 | K53: 0.8603895577 | L53: -5.432285873 | N53: 45 | O53: 0.005356658305 | P53: 0.006344358225 | Q53: -0.1863037468 | R53: 0.07173889569 | S53: 0.860389654 | T53: -5.432286041 | V53: 45 | W53: -1.081670942e-10 | X53: 2.366116565e-10 | Y53: -6.403236719e-09 | Z53: -3.233938936e-09 | AA53: 9.62827672e-08 | AB53: -1.679049788e-07
E54: 82.8 | F54: 46 | G54: 0.00556566622 | H54: 0.006075052928 | I54: -0.1808416172 | J54: 0.07794918798 | K54: 0.6767994612 | L54: -5.357419387 | N54: 46 | O54: 0.005565666118 | P54: 0.006075053173 | Q54: -0.1808416239 | R54: 0.07794918492 | S54: 0.6767995531 | T54: -5.357419562 | V54: 46 | W54: -1.01774489e-10 | X54: 2.453985825e-10 | Y54: -6.651713236e-09 | Z54: -3.062144052e-09 | AA54: 9.182302829e-08 | AB54: -1.748204683e-07
E55: 84.6 | F55: 47 | G55: 0.005763030042 | H55: 0.005798975428 | I55: -0.1751762895 | J55: 0.08388674721 | K55: 0.4987740606 | L55: -5.276478412 | N55: 47 | O55: 0.005763029947 | P55: 0.005798975682 | Q55: -0.1751762964 | R55: 0.08388674434 | S55: 0.4987741476 | T55: -5.276478594 | V55: 47 | W55: -9.488557422e-11 | X55: 2.540180401e-10 | Y55: -6.895761046e-09 | Z55: -2.876309829e-09 | AA55: 8.697238435e-08 | AB55: -1.816236983e-07
E56: 86.4 | F56: 48 | G56: 0.005948533731 | H56: 0.005516591545 | I56: -0.1693195107 | J56: 0.08954503663 | K56: 0.3265107016 | L56: -5.189738988 | N56: 48 | O56: 0.005948533643 | P56: 0.005516591808 | Q56: -0.1693195179 | R56: 0.08954503395 | S56: 0.3265107833 | T56: -5.189739176 | V56: 48 | W56: -8.75046138e-11 | X56: 2.624459053e-10 | Y56: -7.13469217e-09 | Z56: -2.676545874e-09 | AA56: 8.173349164e-08 | AB56: -1.882953127e-07
E57: 88.2 | F57: 49 | G57: 0.006121978934 | H57: 0.005228374137 | I57: -0.1632832417 | J57: 0.09491798573 | K57: 0.1601948713 | L57: -5.097483458 | N57: 49 | O57: 0.006121978854 | P57: 0.005228374408 | Q57: -0.1632832491 | R57: 0.09491798327 | S57: 0.1601949474 | T57: -5.097483653 | V57: 49 | W57: -7.963695241e-11 | X57: 2.706581695e-10 | Y57: -7.367821298e-09 | Z57: -2.462992796e-09 | AA57: 7.610988884e-08 | AB57: -1.948160104e-07
E58: 90 | F58: 50 | G58: 0.006283185307 | H58: 0.004934802201 | I58: -0.1570796327 | J58: 0.1 | K58: -8.039359109e-16 | L58: -5 | N58: 50 | O58: 0.006283185236 | P58: 0.004934802479 | Q58: -0.1570796403 | R58: 0.09999999776 | S58: 7.010599398e-08 | T58: -5.000000201 | V58: 50 | W58: -7.128900768e-11 | X58: 2.786309777e-10 | Y58: -7.594467166e-09 | Z58: -2.23582218e-09 | AA58: 7.010599479e-08 | AB58: -2.011665909e-07
E59: 91.8 | F59: 51 | G59: 0.0064319907 | H59: 0.00463636021 | I59: -0.150721005 | J59: 0.1047859667 | K59: -0.1539127195 | L59: -4.897582146 | N59: 51 | O59: 0.006431990637 | P59: 0.004636360496 | Q59: -0.1507210128 | R59: 0.1047859647 | S59: -0.1539126558 | T59: -4.897582353 | V59: 51 | W59: -6.246826147e-11 | X59: 2.863406621e-10 | Y59: -7.813953623e-09 | Z59: -1.995236268e-09 | AA59: 6.372710476e-08 | AB59: -2.073279894e-07
E60: 93.6 | F60: 52 | G60: 0.006568251318 | H60: 0.004333537446 | I60: -0.1442198331 | J60: 0.1092712601 | K60: -0.3013944937 | L60: -4.790528296 | N60: 52 | O60: 0.006568251265 | P60: 0.00433353774 | Q60: -0.1442198411 | R60: 0.1092712584 | S60: -0.3013944368 | T60: -4.79052851 | V60: 52 | W60: -5.318326508e-11 | X60: 2.937638162e-10 | Y60: -8.025611287e-09 | Z60: -1.741468122e-09 | AA60: 5.697939026e-08 | AB60: -2.132813073e-07
E61: 95.4 | F61: 53 | G61: 0.006691841865 | H61: 0.00402682732 | I61: -0.1375887259 | J61: 0.1134517458 | K61: -0.4423090726 | L61: -4.679141234 | N61: 53 | O61: 0.006691841822 | P61: 0.004026827621 | Q61: -0.1375887341 | R61: 0.1134517443 | S61: -0.4423090227 | T61: -4.679141453 | V61: 53 | W61: -4.344361763e-11 | X61: 3.008773031e-10 | Y61: -8.228778464e-09 | Z61: -1.474781006e-09 | AA61: 4.986988678e-08 | AB61: -2.190078634e-07
E62: 97.2 | F62: 54 | G62: 0.006802655654 | H62: 0.003716726695 | I62: -0.1308404085 | J62: 0.1173237846 | K62: -0.5765328744 | L62: -4.563727626 | N62: 54 | O62: 0.006802655621 | P62: 0.003716727002 | Q62: -0.1308404169 | R62: 0.1173237834 | S62: -0.576532832 | T62: -4.563727851 | V62: 54 | W62: -3.32599677e-11 | X62: 3.076583233e-10 | Y62: -8.42280265e-09 | Z62: -1.195468433e-09 | AA62: 4.240649076e-08 | AB62: -2.244892157e-07
E63: 99 | F63: 55 | G63: 0.006900604698 | H63: 0.003403735205 | I63: -0.1239877031 | J63: 0.1208842355 | K63: -0.7039550927 | L63: -4.444597533 | N63: 55 | O63: 0.006900604675 | P63: 0.003403735519 | Q63: -0.1239877117 | R63: 0.1208842346 | S63: -0.7039550581 | T63: -4.444597762 | V63: 55 | W63: -2.264399258e-11 | X63: 3.140844603e-10 | Y63: -8.607041926e-09 | Z63: -9.038536586e-10 | AA63: 3.459794917e-08 | AB63: -2.297072141e-07
E64: 100.8 | F64: 56 | G64: 0.006985619778 | H64: 0.003088354569 | I64: -0.1170435106 | J64: 0.1241304586 | K64: -0.8244777842 | L64: -4.322063903 | N64: 56 | O64: 0.006985619766 | P64: 0.00308835489 | Q64: -0.1170435194 | R64: 0.124130458 | S64: -0.8244777577 | T64: -4.322064138 | V64: 56 | W64: -1.16083896e-11 | X64: 3.201337116e-10 | Y64: -8.780866007e-09 | Z64: -6.00289346e-10 | AA64: 2.6453849e-08 | AB64: -2.34644026e-07
E65: 102.6 | F65: 57 | G65: 0.007057650483 | H65: 0.002771087909 | I65: -0.1100207918 | J65: 0.127060316 | K65: -0.938015938 | L65: -4.196442076 | N65: 57 | O65: 0.007057650482 | P65: 0.002771088235 | Q65: -0.1100208008 | R65: 0.1270603157 | S65: -0.93801592 | T65: -4.196442316 | V65: 57 | W65: -1.668561123e-13 | X65: 3.257845391e-10 | Y65: -8.943657592e-09 | Z65: -2.851571201e-10 | AA65: 1.798460514e-08 | AB65: -2.392821745e-07
E66: 104.4 | F66: 58 | G66: 0.007116665225 | H66: 0.002452439059 | I66: -0.1029325485 | J66: 0.1296721737 | K66: -1.044497526 | L66: -4.068049277 | N66: 58 | O66: 0.007116665236 | P66: 0.00245243939 | Q66: -0.1029325576 | R66: 0.1296721737 | S66: -1.044497517 | T66: -4.06804952 | V66: 58 | W66: 1.166591823e-11 | X66: 3.310159191e-10 | Y66: -9.094813777e-09 | Z66: 4.113281937e-11 | AA66: 9.20144938e-09 | AB66: -2.43604581e-07
E67: 106.2 | F67: 59 | G67: 0.007162651234 | H67: 0.002132911884 | I67: -0.09579180451 | J67: 0.1319649013 | K67: -1.143863535 | L67: -3.937204111 | N67: 59 | O67: 0.007162651258 | P67: 0.00213291222 | Q67: -0.09579181375 | R67: 0.1319649017 | S67: -1.143863535 | T67: -3.937204359 | V67: 59 | W67: 2.387428189e-11 | X67: 3.358073628e-10 | Y67: -9.233746906e-09 | Z67: 3.78142434e-10 | AA67: 1.164106589e-10 | AB67: -2.475945911e-07
E68: 108 | F68: 60 | G68: 0.007195614525 | H68: 0.001813009593 | I68: -0.08861158715 | J68: 0.1339378724 | K68: -1.236067977 | L68: -3.804226065 | N68: 60 | O68: 0.007195614561 | P68: 0.001813009933 | Q68: -0.08861159651 | R68: 0.1339378731 | S68: -1.236067987 | T68: -3.804226316 | V68: 60 | W68: 3.64416379e-11 | X68: 3.401389845e-10 | Y68: -9.359886199e-09 | Z68: 7.254062628e-10 | AA68: -9.257698164e-09 | AB68: -2.512360173e-07
E69: 109.8 | F69: 61 | G69: 0.007215579838 | H69: 0.001493234058 | I69: -0.08140490833 | J69: 0.1355909628 | K69: -1.321077889 | L69: -3.669434999 | N69: 61 | O69: 0.007215579887 | P69: 0.001493234402 | Q69: -0.0814049178 | R69: 0.1355909639 | S69: -1.321077908 | T69: -3.669435253 | V69: 61 | W69: 4.935046208e-11 | X69: 3.439915212e-10 | Y69: -9.472678614e-09 | Z69: 1.082432172e-09 | AA69: -1.890730017e-08 | AB69: -2.545131692e-07
E70: 111.6 | F70: 62 | G70: 0.007222590563 | H70: 0.001174085136 | I70: -0.07418474588 | J70: 0.1369245494 | K70: -1.3988733 | L70: -3.533150646 | N70: 62 | O70: 0.007222590626 | P70: 0.001174085484 | Q70: -0.07418475545 | R70: 0.1369245509 | S70: -1.398873329 | T70: -3.533150904 | V70: 62 | W70: 6.258233081e-11 | X70: 3.473463862e-10 | Y70: -9.571590173e-09 | Z70: 1.448701936e-09 | AA70: -2.881807104e-08 | AB70: -2.574108864e-07
E71: 113.4 | F71: 63 | G71: 0.00721670863 | H71: 0.0008560599931 | I71: -0.06696402496 | J71: 0.1379395077 | K71: -1.469447195 | L71: -3.395692115 | N71: 63 | O71: 0.007216708706 | P71: 0.0008560603433 | Q71: -0.06696403462 | R71: 0.1379395095 | S71: -1.469447234 | T71: -3.395692375 | V71: 63 | W71: 7.611794615e-11 | X71: 3.501857017e-10 | Y71: -9.656107136e-09 | Z71: 1.823671991e-09 | AA71: -3.897496126e-08 | AB71: -2.599145748e-07
E72: =DEGREES(C$11*F72) -> 115.2 | F72: 64 | G72: =C$11^2*K72+2*C$11*J72 -> 0.007198014383 | H72: =C$11^2*L72-2*C$11*I72 -> 0.0005396524325 | I72: -0.05975559959 | J72: 0.1386372086 | K72: =(C$17+C$16*F72)*COS(C$11*F72) -> -1.53280545 | L72: =-(C$17+C$16*F72)*SIN(C$11*F72) -> -3.257377389 | N72: 64 | O72: 0.007198014473 | P72: 0.000539652785 | Q72: -0.05975560932 | R72: 0.1386372109 | S72: -1.532805499 | T72: -3.257377651 | V72: 64 | W72: 8.993716188e-11 | X72: 3.524923319e-10 | Y72: -9.725736862e-09 | Z72: 2.206774319e-09 | AA72: -4.936222009e-08 | AB72: -2.620102357e-07
E73: 117 | F73: 65 | G73: 0.007166606423 | H73: 0.0002253522318 | I73: =C$12*COS(C$11*F73)+C$11*L73 -> -0.0525722343 | J73: =-C$12*SIN(C$11*F73)-C$11*K73 -> 0.1390195151 | K73: -1.588966749 | L73: -3.118522835 | N73: 65 | O73: 0.007166606527 | P73: 0.0002253525861 | Q73: -0.05257224408 | R73: 0.1390195177 | S73: -1.588966809 | T73: -3.118523098 | V73: 65 | W73: 1.040190182e-10 | X73: 3.542499305e-10 | Y73: -9.780009143e-09 | Z73: 2.597417254e-09 | AA73: -5.99634169e-08 | AB73: -2.636844965e-07
E74: 118.8 | F74: =F73+C$10 -> 66 | G74: 0.007122601439 | H74: -8.635551633e-05 | I74: -0.04542658595 | J74: 0.1390887773 | K74: -1.637962492 | L74: -2.979442712 | N74: 66 | O74: 0.007122601557 | P74: -8.635516089e-05 | Q74: -0.04542659577 | R74: 0.1390887803 | S74: -1.637962563 | T74: -2.979442977 | V74: 66 | W74: =O74-G74 -> 1.183417643e-10 | X74: =P74-H74 -> 3.55442977e-10 | Y74: =Q74-I74 -> -9.818477267e-09 | Z74: =R74-J74 -> 2.994986176e-09 | AA74: =S74-K74 -> -7.076146469e-08 | AB74: =T74-L74 -> -2.649246449e-07
E75: 120.6 | F75: 67 | G75: 0.007066133998 | H75: -0.0003949910559 | I75: -0.03833118577 | J75: 0.1388478282 | K75: -1.679836672 | L75: -2.840448689 | N75: 67 | O75: 0.007066134131 | P75: -0.0003949906998 | Q75: -0.03833119561 | R75: 0.1388478316 | S75: -1.679836754 | T75: -2.840448955 | V75: 67 | W75: 1.328828922e-10 | X75: 3.560567886e-10 | Y75: -9.840718601e-09 | Z75: 3.39884465e-09 | AA75: -8.173865118e-08 | AB75: -2.657186511e-07
E76: 122.4 | F76: 68 | G76: 0.006997356334 | H76: -0.0007000806104 | I76: -0.03129842156 | J76: 0.1382999773 | K76: -1.714645744 | L76: -2.701849362 | N76: 68 | O76: 0.006997356482 | P76: -0.0007000802543 | Q76: -0.0312984314 | R76: 0.1382999811 | S76: -1.714645837 | T76: -2.701849628 | V76: 68 | W76: 1.476191738e-10 | X76: 3.560775898e-10 | Y76: -9.84633626e-09 | Z76: 3.808335258e-09 | AA76: -9.287665903e-08 | AB76: -2.660552063e-07
E77: 124.2 | F77: 69 | G77: 0.006916438092 | H77: -0.001001157018 | I77: -0.02434052015 | J77: 0.1374490048 | K77: -1.742458471 | L77: -2.56394978 | N77: 69 | O77: 0.006916438254 | P77: -0.001001156662 | Q77: -0.02434052999 | R77: 0.137449009 | S77: -1.742458575 | T77: -2.563950046 | V77: 69 | W77: 1.625266892e-10 | X77: 3.554925087e-10 | Y77: -9.834959284e-09 | Z77: 4.222780653e-09 | AA77: -1.041566013e-07 | AB77: -2.659237368e-07
E78: 126 | F78: 70 | G78: 0.006823566066 | H78: -0.001297760355 | I78: -0.01746953016 | J78: 0.1362991544 | K78: -1.763355757 | L78: -2.427050983 | N78: 70 | O78: 0.006823566244 | P78: -0.00129776 | Q78: -0.01746953996 | R78: 0.136299159 | S78: -1.763355872 | T78: -2.427051248 | V78: 70 | W78: 1.775808684e-10 | X78: 3.542896367e-10 | Y78: -9.806244199e-09 | Z78: 4.641484558e-09 | AA78: -1.155590454e-07 | AB78: -2.653144415e-07
E79: 127.8 | F79: 71 | G79: 0.006718943909 | H79: -0.001589438552 | I79: -0.01069730491 | J79: 0.1348551259 | K79: -1.777430456 | L79: -2.291449536 | N79: 71 | O79: 0.006718944102 | P79: -0.001589438199 | Q79: -0.01069731467 | R79: 0.1348551309 | S79: -1.777430583 | T79: -2.2914498 | V79: 71 | W79: 1.927565321e-10 | X79: 3.524580454e-10 | Y79: -9.75987555e-09 | Z79: 5.06373285e-09 | AA79: -1.270640466e-07 | AB79: -2.642183117e-07
E80: 129.6 | F80: 72 | G80: 0.006602791818 | H80: -0.001875747997 | I80: -0.004035485829 | J80: 0.1331220669 | K80: -1.784787171 | L80: -2.15743708 | N80: 72 | O80: 0.006602792026 | P80: -0.001875747647 | Q80: -0.004035495525 | R80: 0.1331220724 | S80: -1.78478731 | T80: -2.157437342 | V80: 72 | W80: 2.080279143e-10 | X80: 3.499878046e-10 | Y80: -9.69556658e-09 | Z80: 5.488794724e-09 | AA80: -1.386511801e-07 | AB80: -2.626271529e-07
E81: 131.4 | F81: 73 | G81: 0.006475346206 | H81: -0.002156254127 | I81: 0.002504514038 | J81: 0.1311055644 | K81: -1.785542036 | L81: -2.025299888 | N81: 73 | O81: 0.006475346429 | P81: -0.00215625378 | Q81: 0.002504504425 | R81: 0.1311055703 | S81: -1.785542187 | T81: -2.025300149 | V81: 73 | W81: 2.233687194e-10 | X81: 3.468700292e-10 | Y81: -9.613060391e-09 | Z81: 5.915923751e-09 | AA81: -1.502995726e-07 | AB81: -2.605336125e-07
E82: 133.2 | F82: 74 | G82: 0.006336859343 | H82: -0.002430532005 | I82: 0.008911525993 | J82: 0.1288116349 | K82: -1.779822475 | L82: -1.895318431 | N82: 74 | O82: 0.006336859582 | P82: -0.002430531662 | Q82: 0.008911516481 | R82: 0.1288116412 | S82: -1.779822637 | T82: -1.895318689 | V82: 74 | W82: 2.387521491e-10 | X82: 3.430968873e-10 | Y82: -9.512130269e-09 | Z82: 6.34435901e-09 | AA82: -1.619879362e-07 | AB82: -2.579311937e-07
E83: 135 | F83: 75 | G83: 0.006187598988 | H83: -0.002698166888 | I83: 0.01517464139 | J83: 0.1262467148 | K83: -1.767766953 | L83: -1.767766953 | N83: 75 | O83: 0.006187599242 | P83: -0.00269816655 | Q83: 0.015174632 | R83: 0.1262467216 | S83: -1.767767127 | T83: -1.767767208 | V83: 75 | W83: 2.541509581e-10 | X83: 3.386616322e-10 | Y83: -9.392580698e-09 | Z83: 6.773326566e-09 | AA83: -1.736946034e-07 | AB83: -2.548142839e-07
E84: 136.8 | F84: 76 | G84: 0.006027847992 | H84: -0.002958754778 | I84: 0.02128322693 | J84: 0.1234176502 | K84: -1.749524706 | L84: -1.642913054 | N84: 76 | O84: 0.006027848261 | P84: -0.002958754445 | Q84: 0.02128321767 | R84: 0.1234176574 | S84: -1.749524891 | T84: -1.642913305 | V84: 76 | W84: 2.695374896e-10 | X84: 3.335586291e-10 | Y84: -9.254247903e-09 | Z84: 7.202040478e-09 | AA84: -1.853975629e-07 | AB84: -2.511781678e-07
E85: 138.6 | F85: 77 | G85: 0.005857903884 | H85: -0.003211902957 | I85: 0.02722693951 | J85: 0.1203316853 | K85: -1.72525546 | L85: -1.52101729 | N85: 77 | O85: 0.005857904169 | P85: -0.003211902629 | Q85: 0.02722693042 | R85: 0.120331693 | S85: -1.725255657 | T85: -1.521017537 | V85: 77 | W85: 2.848837112e-10 | X85: 3.277833543e-10 | Y85: -9.09700016e-09 | Z85: 7.629704021e-09 | AA85: -1.970744952e-07 | AB85: -2.470190423e-07
E86: 140.4 | F86: 78 | G86: 0.005678078443 | H86: -0.003457230511 | I86: 0.03299574076 | J86: 0.1169964513 | K86: -1.695129134 | L86: -1.402332777 | N86: 78 | O86: 0.005678078743 | P86: -0.003457230189 | Q86: 0.03299573184 | R86: 0.1169964594 | S86: -1.695129343 | T86: -1.40233302 | V86: 78 | W86: 3.001612804e-10 | X86: 3.213324394e-10 | Y86: -8.920738793e-09 | Z86: 8.055511216e-09 | AA86: -2.087028101e-07 | AB86: -2.423340388e-07
E87: 142.2 | F87: 79 | G87: 0.005488697246 | H87: -0.003694368832 | I87: 0.038579911 | J87: 0.1134199542 | K87: -1.659325526 | L87: -1.287104813 | N87: 79 | O87: 0.005488697561 | P87: -0.003694368518 | Q87: 0.03857990227 | R87: 0.1134199627 | S87: -1.659325746 | T87: -1.28710505 | V87: 79 | W87: 3.153415628e-10 | X87: 3.142036679e-10 | Y87: -8.725398272e-09 | Z87: 8.478647881e-09 | AA87: -2.202596843e-07 | AB87: -2.371212304e-07
E88: 144 | F88: 80 | G88: 0.005290099199 | H88: -0.00392296211 | I88: 0.04397006283 | J88: 0.1096105622 | K88: -1.618033989 | L88: -1.175570505 | N88: 80 | O88: 0.005290099529 | P88: -0.003922961803 | Q88: 0.04397005432 | R88: 0.1096105711 | S88: -1.61803422 | T88: -1.175570736 | V88: 80 | W88: 3.303957073e-10 | X88: 3.063960023e-10 | Y88: -8.510946864e-09 | Z88: 8.898293227e-09 | AA88: -2.317221e-07 | AB88: -2.313796492e-07
E89: 145.8 | F89: 81 | G89: 0.005082636056 | H89: -0.004142667802 | I89: 0.04915715423 | J89: 0.1055769927 | K89: -1.571453091 | L89: -1.067958418 | N89: 81 | O89: 0.005082636401 | P89: -0.004142667504 | Q89: 0.04915714595 | R89: 0.105577002 | S89: -1.571453334 | T89: -1.067958643 | V89: =F89 -> 81 | W89: 3.452946722e-10 | X89: 2.979095946e-10 | Y89: -8.277387033e-09 | Z89: 9.313621055e-09 | AA89: -2.430668833e-07 | AB89: -2.251092976e-07
E90: 147.6 | F90: 82 | G90: 0.004866671915 | H90: -0.004353157087 | I90: 0.05413250114 | J90: 0.1013282988 | K90: -1.519790266 | L90: -0.964488231 | N90: 82 | O90: 0.004866672275 | P90: -0.004353156798 | Q90: 0.05413249312 | R90: 0.1013283086 | S90: -1.51979052 | T90: -0.9644884493 | V90: 82 | W90: 3.600092767e-10 | X90: 2.887457886e-10 | Y90: -8.02475552e-09 | Z90: 9.723801153e-09 | AA90: -2.542707476e-07 | AB90: -2.183111524e-07
E91: 149.4 | F91: 83 | G91: 0.004642582705 | H91: -0.0045541153 | I91: 0.05888778957 | J91: 0.09687385566 | K91: -1.463261446 | L91: -0.8653704068 | N91: 83 | O91: 0.004642583079 | P91: -0.004554115021 | Q91: 0.05888778182 | R91: 0.09687386579 | S91: -1.463261711 | T91: -0.8653706178 | V91: 83 | W91: 3.745102553e-10 | X91: 2.789071439e-10 | Y91: -7.753123907e-09 | Z91: 1.012800066e-08 | AA91: -2.653103237e-07 | AB91: -2.109871781e-07
E92: 151.2 | F92: 84 | G92: 0.004410755649 | H92: -0.004745242347 | I92: 0.06341508715 | J92: 0.09222334546 | K92: -1.402090688 | L92: -0.7708058786 | N92: 84 | O92: 0.004410756038 | P92: -0.004745242079 | Q92: 0.06341507969 | R92: 0.09222335599 | S92: -1.402090964 | T92: -0.7708060817 | V92: 84 | W92: 3.887683005e-10 | X92: 2.683974284e-10 | Y92: -7.462598595e-09 | Z92: 1.052538558e-08 | AA92: -2.761622127e-07 | AB92: -2.031403308e-07
E93: 153 | F93: 85 | G93: 0.004171588724 | H93: -0.004926253106 | I93: 0.06770685414 | J93: 0.08738674323 | K93: -1.336509786 | L93: -0.6809857496 | N93: 85 | O93: 0.004171589127 | P93: -0.004926252849 | Q93: 0.06770684698 | R93: 0.08738675415 | S93: -1.336510073 | T93: -0.6809859444 | V93: 85 | W93: 4.027541209e-10 | X93: 2.572216407e-10 | Y93: -7.153321269e-09 | Z93: 1.091512218e-08 | AA93: -2.868030176e-07 | AB93: -1.947745656e-07
E94: 154.8 | F94: 86 | G94: 0.003925490097 | H94: -0.005096877798 | I94: 0.07175595392 | J94: 0.08237430145 | K94: -1.266757873 | L94: -0.5960910082 | N94: 86 | O94: 0.003925490514 | P94: -0.005096877552 | Q94: 0.0717559471 | R94: 0.08237431274 | S94: -1.266758171 | T94: -0.5960911941 | V94: 86 | W94: 4.164384722e-10 | X94: 2.453859928e-10 | Y94: -6.825468607e-09 | Z94: 1.12963783e-08 | AA94: -2.972093893e-07 | AB94: -1.858948352e-07
E95: 156.6 | F95: 87 | G95: 0.003672877553 | H95: -0.005256862346 | I95: 0.07555566293 | J95: 0.07719653453 | K95: -1.193081013 | L95: -0.5162922578 | N95: 87 | O95: 0.003672877983 | P95: -0.005256862113 | Q95: 0.07555565645 | R95: 0.0771965462 | S95: -1.193081321 | T95: -0.5162924343 | V95: 87 | W95: 4.297922278e-10 | X95: 2.328979327e-10 | Y95: -6.479252704e-09 | Z95: 1.166832497e-08 | AA95: -3.073580666e-07 | AB95: -1.765070966e-07
E96: 158.4 | F96: 88 | G96: 0.003414177912 | H96: -0.00540596871 | I96: 0.0790996799 | J96: 0.071864203 | K96: -1.115731783 | L96: -0.4417494632 | N96: 88 | O96: 0.003414178355 | P96: -0.005405968491 | Q96: 0.07909967379 | R96: 0.07186421503 | S96: -1.1157321 | T96: -0.4417496298 | V96: 88 | W96: 4.427864139e-10 | X96: 2.197661298e-10 | Y96: -6.11492082e-09 | Z96: 1.203013764e-08 | AA96: -3.172259126e-07 | AB96: -1.666183059e-07
E97: 160.2 | F97: 89 | G97: 0.003149826431 | H97: -0.005543975204 | I97: 0.08238213472 | J97: 0.06638829725 | K97: -1.034968846 | L97: -0.3726117123 | N97: 89 | O97: 0.003149826886 | P97: -0.005543974998 | Q97: 0.08238212898 | R97: 0.06638830963 | S97: -1.034969173 | T97: -0.3726118685 | V97: 89 | W97: 4.553922634e-10 | X97: 2.060004771e-10 | Y97: -5.732755354e-09 | Z97: 1.238099774e-08 | AA97: -3.267899653e-07 | AB97: -1.562364194e-07
E98: 162 | F98: 90 | G98: 0.002880266197 | H98: -0.005670676781 | I98: 0.08539759644 | J98: 0.06078002108 | K98: -0.9510565163 | L98: -0.3090169944 | N98: 90 | O98: 0.002880266664 | P98: -0.005670676589 | Q98: 0.0853975911 | R98: 0.06078003381 | S98: -0.9510568523 | T98: -0.3090171397 | V98: 90 | W98: 4.675812723e-10 | X98: 1.916120916e-10 | Y98: -5.333073913e-09 | Z98: 1.272009428e-08 | AA98: -3.36027473e-07 | AB98: -1.453703907e-07
E99: 163.8 | F99: 91 | G99: 0.002605947509 | H99: -0.00578588531 | I99: 0.08814108089 | J99: 0.0550507749 | K99: -0.8642643171 | L99: -0.2510919954 | N99: 91 | O99: 0.002605947988 | P99: -0.005785885133 | Q99: 0.08814107597 | R99: 0.05505078794 | S99: -0.864264662 | T99: -0.2510921295 | V99: 91 | W99: 4.79325234e-10 | X99: 1.766132986e-10 | Y99: -4.916228813e-09 | Z99: 1.30466249e-08 | AA99: -3.449159366e-07 | AB99: -1.340301629e-07
E100: 165.6 | F100: 92 | G100: 0.002327327255 | H100: -0.005889429822 | I100: 0.09060805753 | J100: 0.04921213866 | K100: -0.7748665289 | L100: -0.1989519097 | N100: 92 | O100: 0.002327327746 | P100: -0.005889429661 | Q100: 0.09060805305 | R100: 0.04921215202 | S100: -0.7748668823 | T100: -0.198952032 | V100: 92 | W100: 4.905963097e-10 | X100: 1.610176315e-10 | Y100: -4.482607147e-09 | Z100: 1.335979777e-08 | AA100: -3.534331536e-07 | AB100: -1.222266645e-07
E101: 167.4 | F101: 93 | G101: 0.002044868275 | H101: -0.005981156735 | I101: 0.09279445576 | J101: 0.04327585465 | K101: -0.6831417334 | L101: -0.152700269 | N101: 93 | O101: 0.002044868776 | P101: -0.00598115659 | Q101: 0.09279445173 | R101: 0.04327586831 | S101: -0.6831420949 | T101: -0.1527003789 | V101: 93 | W101: 5.013670607e-10 | X101: 1.448398233e-10 | Y101: -4.032630341e-09 | Z101: 1.365883263e-08 | AA101: -3.61557252e-07 | AB101: -1.099717984e-07
E102: 169.2 | F102: 94 | G102: 0.001759038717 | H102: -0.006060930054 | I102: 0.0946966705 | J102: 0.03725380992 | K102: -0.5893723504 | L102: -0.1124287888 | N102: 94 | O102: 0.001759039229 | P102: -0.006060929926 | Q102: 0.09469666694 | R102: 0.03725382387 | S102: -0.5893727197 | T102: -0.112428886 | V102: 94 | W102: 5.116105001e-10 | X102: 1.280957805e-10 | Y102: -3.566753726e-09 | Z102: 1.394296241e-08 | AA102: -3.692667413e-07 | AB102: -9.727843339e-08
E103: 171 | F103: 95 | G103: 0.001470311392 | H103: -0.006128631555 | I103: 0.09631156723 | J103: 0.03115801868 | K103: -0.4938441703 | L103: -0.07821723252 | N103: 95 | O103: 0.001470311913 | P103: -0.006128631445 | Q103: 0.09631156414 | R103: 0.03115803289 | S103: -0.4938445468 | T103: -0.07821731668 | V103: 95 | W103: 5.213001541e-10 | X103: 1.10802585e-10 | Y103: -3.085466271e-09 | Z103: 1.421143472e-08 | AA103: -3.765405466e-07 | AB103: -8.416039245e-08
E104: =DEGREES(C$11*F104) -> 172.8 | F104: 96 | G104: 0.001179163117 | H104: =C$11^2*L104-2*C$11*I104 -> -0.006184160937 | I104: 0.09763648627 | J104: 0.02500060439 | K104: -0.3968458805 | L104: -0.05013329343 | N104: 96 | O104: 0.001179163647 | P104: -0.006184160844 | Q104: 0.09763648368 | R104: 0.02500061885 | S104: -0.3968462639 | T104: -0.05013336406 | V104: 96 | W104: 5.304100941e-10 | X104: 9.297847388e-11 | Y104: -2.589290102e-09 | Z104: 1.446351304e-08 | AA104: -3.833580522e-07 | AB104: -7.063243791e-08
E105: 174.6 | F105: 97 | G105: 0.0008860740539 | H105: -0.006227435954 | I105: 0.0986692465 | J105: =-C$12*SIN(C$11*F105)-C$11*K105 -> 0.01879378179 | K105: -0.2986685894 | L105: -0.028232494 | N105: 97 | O105: 0.0008860745929 | P105: -0.006227435879 | Q105: 0.09866924442 | R105: 0.01879379649 | S105: -0.2986689791 | T105: -0.02823255071 | V105: 97 | W105: 5.389149926e-10 | X105: 7.464281276e-11 | Y105: -2.078779898e-09 | Z105: 1.469847818e-08 | AA105: -3.896991342e-07 | AB105: -5.671025719e-08
E106: 176.4 | F106: 98 | G106: 0.0005915270496 | H106: -0.006258392524 | I106: 0.09940814837 | J106: 0.01254983883 | K106: -0.1996053457 | L106: -0.01255810391 | N106: 98 | O106: 0.0005915275964 | P106: -0.006258392469 | Q106: 0.09940814682 | R106: 0.01254985374 | S106: -0.1996057412 | T106: -0.01255814632 | V106: 98 | W106: 5.467901757e-10 | X106: 5.58160896e-11 | Y106: -1.5545224e-09 | Z106: 1.491562986e-08 | AA106: -3.955442105e-07 | AB106: -4.241044658e-08
E107: 178.2 | F107: 99 | G107: 0.0002960069634 | H107: -0.006276984817 | I107: 0.09985197623 | J107: 0.006281118375 | K107: -0.09995065604 | L107: -0.003141075908 | N107: 99 | O107: 0.0002960075174 | P107: -0.00627698478 | Q107: 0.09985197521 | R107: 0.006281133489 | S107: -0.09995105691 | T107: -0.003141103658 | V107: 99 | W107: 5.540116538e-10 | X107: 3.65198826e-11 | Y107: -1.017135681e-09 | Z107: 1.511428767e-08 | AA107: -4.008742728e-07 | AB107: -2.775049171e-08
E108: 180 | F108: 100 | G108: -2.020511321e-18 | H108: -0.006283185307 | I108: 0.1 | J108: -3.215743644e-17 | K108: 0 | L108: 0 | N108: 100 | O108: 5.605561866e-10 | P108: -0.00628318529 | Q108: 0.09999999953 | R108: 1.52937928e-08 | S108: -4.056709258e-07 | T108: -1.27487486e-08 | V108: 100 | W108: 5.605561886e-10 | X108: 1.67768412e-11 | Y108: -4.672685849e-10 | Z108: 1.529379283e-08 | AA108: -4.056709258e-07 | AB108: -1.27487486e-08

Sheet お問合せ
B2: 技術的なご質問のみお受けします。
C4: sxsijk@Gmail.com | D4: sxsijk@Gmail.com
E119: =C119-C$20 -> 0
E120: =IF(C120<0,C120+360,C120)-IF(C$21<0,C$21+360,C$21) -> 0
E121: =C121-C$22 -> 0
E123: =C123-C$16 -> 0
E124: =C124-C$17 -> 0
E125: =C125-C$18 -> 0
E126: =C126-C$19 -> 0
E127: =C127-C$20 -> 0
E128: =IF(C128<0,C128+360,C128)-IF(C$21<0,C$21+360,C$21) -> 0
E129: =C129-C$22 -> 0
E130: =C130-C$23 -> 0
E131: =C131-C$24 -> 0
E132: =C132-C$25 -> 0
E133: =C133-C$26 -> 0
C136: 35 | E136: =C136-C$16 -> 35
B137: λp | E137: =C137-C$17 -> 0
E138: =C138-C$18 -> 0
C139: =SQRT(((#REF!^2*COS(RADIANS(C136)))^2+(#REF!^2*SIN(RADIANS(C136)))^2)/(#REF!^2*(1-C$4*SIN(RADIANS(C136))^2))) ->  | E139: =C139-C$19 -> 
C140: =DEGREES(C142/C139) ->  | E140: =C140-C$24 -> 
E141: =C141-C$25 -> 0
E142: =C142-C$26 -> 0
E143: =IF(C143<0,C143+360,C143)-IF(C$21<0,C$21+360,C$21) -> 0
E144: =C144-C$22 -> 0
C145: =DEGREES(ATAN2((1-C$4)*COS(RADIANS(C144)),SIN(RADIANS(C144)))) ->  | E145: =C145-C$20 -> 
C146: =SQRT(((#REF!^2*COS(RADIANS(C145)))^2+(#REF!^2*SIN(RADIANS(C145)))^2)/(#REF!^2*(1-C$4*SIN(RADIANS(C145))^2))) ->  | E146: =C146-C$23 -> 
C147: =DEGREES(ACOS(COS(RADIANS(C$138))*COS(RADIANS(C144))*(COS(RADIANS(C$137))*COS(RADIANS(C143))+SIN(RADIANS(C$137))*SIN(RADIANS(C143)))+SIN(RADIANS(C$138))*SIN(RADIANS(C144)))) -> 0 | E147: =C147-C$24 -> 0
C148: =DEGREES(ATAN2(COS(RADIANS(C$138))*SIN(RADIANS(C144))-SIN(RADIANS(C$138))*COS(RADIANS(C144))*COS(RADIANS(C143-C$137)),COS(RADIANS(C144))*SIN(RADIANS(C143-C$137)))) ->  | E148: =C148-C$25 -> 
C149: =SQRT(((C$139-C146)*COS(RADIANS(C147/2)))^2+(MAX(C$139,C146)*RADIANS(C147)-ABS(C$139-C146)*SIN(RADIANS(C147/2)))^2) ->  | E149: =C149-C$26 -> 
A150: 補正 | B150: θ＝θ+(d0-d)/r | C150: =C140+DEGREES((C142-C149)/C146) ->  | E150: =C150-C$24 -> 
C151: =C141 -> 0 | E151: =C151-C$25 -> 0
C152: =C142 -> 0 | E152: =C152-C$26 -> 0
E153: =IF(C153<0,C153+360,C153)-IF(C$21<0,C$21+360,C$21) -> 0
E154: =C154-C$22 -> 0
C155: =DEGREES(ATAN2((1-C$4)*COS(RADIANS(C154)),SIN(RADIANS(C154)))) ->  | E155: =C155-C$20 -> 
C156: =SQRT(((#REF!^2*COS(RADIANS(C155)))^2+(#REF!^2*SIN(RADIANS(C155)))^2)/(#REF!^2*(1-C$4*SIN(RADIANS(C155))^2))) ->  | E156: =C156-C$23 -> 
C157: =DEGREES(ACOS(COS(RADIANS(C$138))*COS(RADIANS(C154))*(COS(RADIANS(C$137))*COS(RADIANS(C153))+SIN(RADIANS(C$137))*SIN(RADIANS(C153)))+SIN(RADIANS(C$138))*SIN(RADIANS(C154)))) -> 0 | E157: =C157-C$24 -> 0
C158: =DEGREES(ATAN2(COS(RADIANS(C$138))*SIN(RADIANS(C154))-SIN(RADIANS(C$138))*COS(RADIANS(C154))*COS(RADIANS(C153-C$137)),COS(RADIANS(C154))*SIN(RADIANS(C153-C$137)))) ->  | E158: =C158-C$25 -> 
C159: =SQRT(((C$139-C156)*COS(RADIANS(C157/2)))^2+(MAX(C$139,C156)*RADIANS(C157)-ABS(C$139-C156)*SIN(RADIANS(C157/2)))^2) ->  | E159: =C159-C$26 -> 
